[Event "EYCC Open-U10 2019"]
[Site "Bratislava"]
[Date "2019.08.10"]
[Round "9.41"]
[White "Kozlovic, Jernej"]
[Black "Sowinski, Pawel"]
[Result "0-1"]
[ECO "B22"]
[WhiteElo "1294"]
[BlackElo "1644"]
[Annotator "NA RC"]
[PlyCount "180"]
[EventDate "2019.08.02"]
[EventType "swiss"]
[EventCountry "SVK"]
[SourceTitle "playchess.com"]
[Source "ChessBase"]
[SourceQuality "1"]
[TimeControl "40/5400+30:1800+30"]

1. e4 {[%emt 0:00:00]} c5 {[%emt 0:00:00]} 2. c3 {[%emt 0:00:00]} d5 {[%emt 0:00:00]} 3. exd5 {[%emt 0:00:00]} Qxd5 {[%emt 0:00:16]} 4. d4 {[%emt 0:00:00]} Nf6 {[%emt 0:00:32]} 5. Nf3 {[%emt 0:00:40]} Bg4 {[%emt 0:00:21]} 6. Be2 {[%emt 0:00:19]} Nc6 {[%emt 0:01:42]} 7. h3 {[%emt 0:02:17]} Bh5 {[%emt 0:00:25]} 8. Be3 {[%emt 0:00:40]} e6 {[%emt 0:01:26]} 9. O-O {[%emt 0:01:20]} Rd8 {[%emt 0:01:13]} 10. Re1 {[%emt 0:07:18]} Be7 {[%emt 0:01:08]} 11. Qa4 {[%emt 0:04:20]} O-O {[%emt 0:02:03]} 12. Nbd2 {[%emt 0:03:30]} cxd4 {[%emt 0:04:25]} 13. cxd4 {[%emt 0:01:12]} Bb4 {[%emt 0:00:41]} 14. Red1 {[%emt 0:07:40]} Qa5 {[%emt 0:07:01]} 15. Qxa5 {[%emt 0:01:27]} Bxa5 {[%emt 0:00:40]} 16. Nb3 {[%emt 0:03:19]} Bb6 {[%emt 0:04:25]} 17. Rac1 {[%emt 0:02:25]} Rd6 {[%emt 0:04:13]} 18. g4 {[%emt 0:03:44]} Bg6 {[%emt 0:01:46]} 19. Bf4 {[%emt 0:02:06]} Rd7 {[%emt 0:00:56]} 20. Bb5 {[%emt 0:09:01]} Be4 {[%emt 0:02:57]} 21. Ne5 {[%emt 0:08:23]} Rxd4 {[%emt 0:07:26]} 22. Nxd4 {[%emt 0:05:52]} Nxd4 {[%emt 0:00:55]} 23. Bf1 {[%emt 0:06:16]} Nd5 {[%emt 0:00:41]} 24. Be3 {[%emt 0:05:22]} Nf3+ {[%emt 0:01:12]} 25. Nxf3 {[%emt 0:00:39]} Bxf3 {[%emt 0:00:14]} 26. Rd3 {[%emt 0:01:11]} Be4 {[%emt 0:03:37]} 27. Rb3 {[%emt 0:03:25]} Bxe3 {[%emt 0:02:29]} 28. fxe3 {[%emt 0:00:26]} f5 {[%emt 0:00:48]} 29. Bg2 {[%emt 0:03:50]} b6 {[%emt 0:01:23]} 30. Rf1 {[%emt 0:03:32]} g6 {[%emt 0:03:47]} 31. Bxe4 {[%emt 0:01:07]} fxe4 {[%emt 0:04:38]} 32. Rxf8+ {[%emt 0:00:30]} Kxf8 {[%emt 0:00:11]} 33. a4 {[%emt 0:00:25]} a5 {[%emt 0:00:35]} 34. Kf2 {[%emt 0:00:37]} Ke7 {[%emt 0:00:28]} 35. Ra3 {[%emt 0:00:16]} Kd6 {[%emt 0:01:53]} 36. Ra1 {[%emt 0:00:36]} Kc5 {[%emt 0:02:13]} 37. Rc1+ {[%emt 0:02:00]} Kb4 {[%emt 0:01:42]} 38. Rc6 {[%emt 0:00:21]} Kxa4 {[%emt 0:00:37]} 39. Rxe6 {[%emt 0:00:21]} Kb3 {[%emt 0:00:53]} 40. Rd6 {[%emt 0:00:00]} Nb4 {[%emt 0:00:00]} 41. Rxb6 {[%emt 0:03:43]} Kxb2 {[%emt 0:02:10]} 42. Rb5 {[%emt 0:00:39]} Kc3 {[%emt 0:00:13]} 43. Rxa5 {[%emt 0:00:39]} Kd2 {[%emt 0:00:17]} 44. Ra7 {[%emt 0:05:24]} Nd3+ {[%emt 0:00:13]} 45. Kf1 {[%emt 0:00:19]} Kxe3 {[%emt 0:00:36]} 46. Ra2 {[%emt 0:05:09]} Kf3 {[%emt 0:03:03]} 47. g5 {[%emt 0:01:17]} e3 {[%emt 0:01:42]} 48. Rc2 {[%emt 0:02:27]} Nf4 {[%emt 0:01:03]} 49. Rc3 {[%emt 0:00:20]} Nxh3 {[%emt 0:00:34]} 50. Rc2 {[%emt 0:03:32]} Nxg5 {[%emt 0:00:40]} 51. Rf2+ {[%emt 0:00:44]} Kg3 {[%emt 0:01:39]} 52. Rg2+ {[%emt 0:00:47]} Kf4 {[%emt 0:00:19]} 53. Rh2 {[%emt 0:02:50]} h5 {[%emt 0:00:54]} 54. Rg2 {[%emt 0:01:34]} h4 {[%emt 0:00:37]} 55. Re2 {[%emt 0:01:27]} h3 {[%emt 0:01:06]} 56. Rh2 {[%emt 0:00:37]} Kg3 {[%emt 0:00:29]} 57. Re2 {[%emt 0:01:17]} Nf3 {[%emt 0:01:01]} 58. Ra2 {[%emt 0:00:49]} Nd2+ {[%emt 0:01:01]} 59. Ke2 {[%emt 0:00:57]} Nc4 {[%emt 0:00:51]} 60. Rc2 {[%emt 0:01:31]} h2 {[%emt 0:00:26]} 61. Rxc4 {[%emt 0:00:55]} h1=Q {[%emt 0:01:12]} 62. Kxe3 {[%emt 0:00:01]} Qf3+ {[%emt 0:00:56]} 63. Kd2 {[%emt 0:00:14]} Kf2 {[%emt 0:00:25]} 64. Rc2 {[%emt 0:01:05]} Qe3+ {[%emt 0:01:04]} 65. Kd1+ {[%emt 0:00:06]} Kf1 {[%emt 0:00:20]} 66. Rb2 {[%emt 0:01:21]} Qd3+ {[%emt 0:00:20]} 67. Kc1 {[%emt 0:00:14]} Ke1 {[%emt 0:00:10]} 68. Rc2 {[%emt 0:00:29]} Qa3+ {[%emt 0:00:23]} 69. Rb2 {[%emt 0:00:18]} Qc3+ {[%emt 0:00:07]} 70. Kb1 {[%emt 0:00:17]} Kd1 {[%emt 0:00:15]} 71. Ka2 {[%emt 0:00:55]} Kc1 {[%emt 0:01:00]} 72. Rb1+ {[%emt 0:00:15]} Kd2 {[%emt 0:00:13]} 73. Rb2+ {[%emt 0:00:12]} Kd1 {[%emt 0:00:46]} 74. Rb1+ {[%emt 0:00:18]} Kd2 {[%emt 0:00:33]} 75. Rb2+ {[%emt 0:00:12]} Qxb2+ {[%emt 0:00:14]} 76. Kxb2 {[%emt 0:00:07]} g5 {[%emt 0:00:10]} 77. Kb3 {[%emt 0:00:02]} g4 {[%emt 0:00:17]} 78. Kc4 {[%emt 0:00:01]} g3 {[%emt 0:00:12]} 79. Kd4 {[%emt 0:00:02]} g2 {[%emt 0:00:12]} 80. Ke4 {[%emt 0:00:01]} g1=Q {[%emt 0:00:19]} 81. Ke5 {[%emt 0:00:02]} Qg4 {[%emt 0:00:23]} 82. Kd5 {[%emt 0:00:05]} Kc3 {[%emt 0:00:14]} 83. Ke5 {[%emt 0:00:06]} Kd3 {[%emt 0:00:13]} 84. Kd5 {[%emt 0:00:04]} Qf5+ {[%emt 0:00:21]} 85. Kd6 {[%emt 0:00:14]} Kc4 {[%emt 0:00:14]} 86. Kc6 {[%emt 0:00:04]} Qe6+ {[%emt 0:00:13]} 87. Kc7 {[%emt 0:00:02]} Kb5 {[%emt 0:00:16]} 88. Kb7 {[%emt 0:00:08]} Qe7+ {[%emt 0:00:05]} 89. Kc8 {[%emt 0:00:09]} Kb6 {[%emt 0:00:39]} 90. Kb8 {[%emt 0:00:03]} Qb7# 0-1

[Event "EYCC Open-U10 2019"]
[Site "Bratislava"]
[Date "2019.08.10"]
[Round "9.42"]
[White "Morozov, Saveliy"]
[Black "Haubold, Sebastian Marcel"]
[Result "0-1"]
[ECO "C46"]
[WhiteElo "1278"]
[BlackElo "1455"]
[Annotator "NA RC"]
[PlyCount "86"]
[EventDate "2019.08.02"]
[EventType "swiss"]
[EventCountry "SVK"]
[SourceTitle "playchess.com"]
[Source "ChessBase"]
[SourceQuality "1"]
[TimeControl "40/5400+30:1800+30"]

1. e4 {[%emt 0:00:00]} e5 {[%emt 0:00:00]} 2. Nf3 {[%emt 0:00:00]} Nc6 {[%emt 0:00:00]} 3. Nc3 {[%emt 0:00:00]} Bc5 {[%emt 0:01:35]} 4. Nxe5 {[%emt 0:00:00]} Bxf2+ {[%emt 0:02:32]} 5. Kxf2 {[%emt 0:00:22]} Nxe5 {[%emt 0:00:19]} 6. d4 {[%emt 0:03:39]} Ng6 {[%emt 0:01:13]} 7. Be3 {[%emt 0:11:35]} d6 {[%emt 0:05:36]} 8. Bb5+ {[%emt 0:13:20]} c6 {[%emt 0:03:05]} 9. Bd3 {[%emt 0:00:56]} Nf6 {[%emt 0:04:05]} 10. h3 {[%emt 0:01:17]} b5 {[%emt 0:07:56]} 11. a3 {[%emt 0:01:05]} Qc7 {[%emt 0:04:20]} 12. Rf1 {[%emt 0:07:46]} Bd7 {[%emt 0:06:18]} 13. Kg1 {[%emt 0:02:41]} O-O {[%emt 0:02:08]} 14. Bg5 {[%emt 0:01:55]} Ne8 {[%emt 0:04:07]} 15. Ne2 {[%emt 0:03:59]} h6 {[%emt 0:00:49]} 16. Be3 {[%emt 0:01:30]} c5 {[%emt 0:03:19]} 17. c3 {[%emt 0:02:46]} a5 {[%emt 0:10:28]} 18. Nf4 {[%emt 0:03:39]} Nxf4 {[%emt 0:00:21]} 19. Bxf4 {[%emt 0:00:26]} Qb6 {[%emt 0:00:14]} 20. Be3 {[%emt 0:02:16]} c4 {[%emt 0:02:11]} 21. Bc2 {[%emt 0:01:28]} Nc7 {[%emt 0:04:27]} 22. Qd2 {[%emt 0:00:45]} d5 {[%emt 0:05:28]} 23. Qf2 {[%emt 0:02:10]} Rae8 {[%emt 0:03:49]} 24. e5 {[%emt 0:04:01]} b4 {[%emt 0:07:38]} 25. Qg3 {[%emt 0:02:30]} Kh8 {[%emt 0:01:43]} 26. Rf2 {[%emt 0:04:14]} bxc3 {[%emt 0:00:28]} 27. bxc3 {[%emt 0:00:04]} Qb2 {[%emt 0:00:53]} 28. Rb1 {[%emt 0:01:30]} Qxc3 {[%emt 0:00:14]} 29. Rb7 {[%emt 0:00:16]} Rc8 {[%emt 0:00:28]} 30. e6 {[%emt 0:00:17]} Bxe6 {[%emt 0:00:16]} 31. Rxc7 {[%emt 0:01:04]} Rxc7 {[%emt 0:00:20]} 32. Qxc7 {[%emt 0:00:06]} Qxe3 {[%emt 0:00:05]} 33. Qc6 {[%emt 0:01:56]} Qxd4 {[%emt 0:02:36]} 34. Qa6 {[%emt 0:00:07]} Qc5 {[%emt 0:02:03]} 35. a4 {[%emt 0:01:05]} Rb8 {[%emt 0:02:10]} 36. Bf5 {[%emt 0:05:16]} Bxf5 {[%emt 0:00:24]} 37. Qb5 {[%emt 0:00:49]} Rxb5 38. axb5 {[%emt 0:00:07]} c3 {[%emt 0:00:22]} 39. Kf1 {[%emt 0:00:11]} Bd3+ {[%emt 0:00:35]} 40. Kg1 {[%emt 0:00:00]} c2 {[%emt 0:00:00]} 41. Kh2 {[%emt 0:00:54]} Qxf2 {[%emt 0:00:23]} 42. b6 {[%emt 0:00:05]} c1=Q {[%emt 0:00:16]} 43. h4 {[%emt 0:00:12]} Qxh4# 0-1

[Event "EYCC Open-U10 2019"]
[Site "Bratislava"]
[Date "2019.08.10"]
[Round "9.43"]
[White "Tran, Sixten"]
[Black "Pereverzev, Timofei"]
[Result "1/2-1/2"]
[ECO "B22"]
[WhiteElo "1516"]
[BlackElo "1332"]
[Annotator "NA RC"]
[PlyCount "107"]
[EventDate "2019.08.02"]
[EventType "swiss"]
[EventCountry "SVK"]
[SourceTitle "playchess.com"]
[Source "ChessBase"]
[SourceQuality "1"]
[TimeControl "40/5400+30:1800+30"]

1. e4 c5 2. c3 d5 3. exd5 Qxd5 4. d4 Nf6 5. Nf3 e6 6. Bd3 cxd4 7. cxd4 Nc6 8. O-O Bd6 9. Nc3 Qa5 10. Bd2 Qh5 11. Nb5 Bb8 12. Re1 a6 13. Nc3 O-O 14. Bg5 Bxh2+ 15. Nxh2 Qxg5 16. Nf3 Qa5 17. Ne5 Qb6 18. Nxc6 Qxc6 19. Ne4 Qd5 20. Nxf6+ gxf6 21. Re3 Rd8 22. Rg3+ Kf8 23. Bxh7 Ke7 24. Rg7 Bd7 25. Qd3 Bc6 26. Qa3+ Qd6 27. Qxd6+ Rxd6 28. Rd1 Rad8 29. Rg4 e5 30. Kf1 Rxd4 31. Rgxd4 Rxd4 32. Rxd4 exd4 33. g3 Ke6 34. Bb1 f5 35. a3 Be4 36. Ba2+ Bd5 37. Bb1 Bc4+ 38. Ke1 Ke5 39. f4+ Ke6 40. Kd2 f6 41. Bc2 b5 42. Bb1 Bd5 43. Bc2 a5 44. b4 axb4 45. axb4 Be4 46. Bb3+ Bd5 47. Bc2 Bc4 48. Bb1 d3 49. Ke3 Kd5 50. Bxd3 Bxd3 51. Kxd3 Kc6 52. Kd4 Kd6 53. Ke3 Ke6 54. Kd2 1/2-1/2

[Event "EYCC Open-U10 2019"]
[Site "Bratislava"]
[Date "2019.08.10"]
[Round "9.44"]
[White "La Barbera, Manfredi"]
[Black "Derbenev, Arseniy"]
[Result "0-1"]
[ECO "C02"]
[WhiteElo "1479"]
[BlackElo "1219"]
[Annotator "NA RC"]
[PlyCount "76"]
[EventDate "2019.08.02"]
[EventType "swiss"]
[EventCountry "SVK"]
[SourceTitle "playchess.com"]
[Source "ChessBase"]
[SourceQuality "1"]
[TimeControl "40/5400+30:1800+30"]

1. e4 {[%emt 0:00:00]} e6 {[%emt 0:00:00]} 2. d4 {[%emt 0:00:00]} d5 {[%emt 0:00:00]} 3. e5 {[%emt 0:00:00]} c5 {[%emt 0:00:00]} 4. c3 {[%emt 0:00:00]} Nc6 {[%emt 0:00:07]} 5. Nf3 {[%emt 0:00:00]} Bd7 {[%emt 0:00:14]} 6. a3 {[%emt 0:00:00]} c4 {[%emt 0:00:47]} 7. Be2 {[%emt 0:00:26]} Nge7 {[%emt 0:00:09]} 8. Bf4 {[%emt 0:01:13]} Ng6 {[%emt 0:00:20]} 9. Bg3 {[%emt 0:00:07]} Be7 {[%emt 0:00:19]} 10. Nbd2 {[%emt 0:00:53]} O-O {[%emt 0:00:14]} 11. O-O {[%emt 0:00:10]} a5 {[%emt 0:07:53]} 12. b3 {[%emt 0:01:03]} b5 {[%emt 0:02:27]} 13. a4 {[%emt 0:04:42]} Na7 {[%emt 0:04:50]} 14. Qc2 {[%emt 0:03:39]} cxb3 {[%emt 0:01:17]} 15. Nxb3 {[%emt 0:04:15]} bxa4 {[%emt 0:00:25]} 16. Nbd2 {[%emt 0:00:06]} Qc7 {[%emt 0:01:59]} 17. h4 {[%emt 0:02:00]} Rfc8 {[%emt 0:02:31]} 18. Rfc1 {[%emt 0:01:21]} Bb5 {[%emt 0:03:47]} 19. Bxb5 {[%emt 0:11:51]} Nxb5 {[%emt 0:00:56]} 20. Nb1 {[%emt 0:05:33]} a3 {[%emt 0:02:54]} 21. h5 {[%emt 0:00:18]} Nf8 {[%emt 0:00:20]} 22. Qd3 {[%emt 0:02:14]} Qc4 {[%emt 0:02:41]} 23. Qc2 {[%emt 0:11:09]} h6 {[%emt 0:02:36]} 24. Bh4 {[%emt 0:03:45]} Bxh4 {[%emt 0:03:15]} 25. Nxh4 {[%emt 0:00:26]} Nxd4 {[%emt 0:00:52]} 26. cxd4 {[%emt 0:00:51]} Qxc2 {[%emt 0:00:35]} 27. Rxc2 {[%emt 0:00:05]} Rxc2 {[%emt 0:00:26]} 28. Nxa3 {[%emt 0:00:06]} Rb2 {[%emt 0:02:20]} 29. Nf3 {[%emt 0:00:16]} Nd7 {[%emt 0:00:52]} 30. Nb1 {[%emt 0:00:06]} Rc2 {[%emt 0:02:16]} 31. Nbd2 {[%emt 0:00:11]} a4 {[%emt 0:01:51]} 32. Kf1 {[%emt 0:00:04]} Nb6 {[%emt 0:02:02]} 33. Ke1 {[%emt 0:00:20]} a3 {[%emt 0:02:48]} 34. Kd1 {[%emt 0:00:16]} Rb2 {[%emt 0:00:32]} 35. Kc1 {[%emt 0:00:08]} Rc8+ {[%emt 0:00:56]} 36. Kd1 {[%emt 0:00:13]} a2 {[%emt 0:01:01]} 37. Ne1 {[%emt 0:00:03]} Nc4 {[%emt 0:00:45]} 38. Nc2 {[%emt 0:00:06]} Nxd2 {[%emt 0:00:35]} 0-1

[Event "EYCC Open-U10 2019"]
[Site "Bratislava"]
[Date "2019.08.10"]
[Round "9.45"]
[White "Hasanli, Ziya"]
[Black "Ribstein, Orel"]
[Result "0-1"]
[ECO "E77"]
[WhiteElo "1315"]
[BlackElo "1662"]
[Annotator "NA RC"]
[PlyCount "36"]
[EventDate "2019.08.02"]
[EventType "swiss"]
[EventCountry "SVK"]
[SourceTitle "playchess.com"]
[Source "ChessBase"]
[SourceQuality "1"]
[TimeControl "40/5400+30:1800+30"]

1. d4 {[%emt 0:00:00]} d6 {[%emt 0:00:00]} 2. c4 {[%emt 0:00:00]} g6 {[%emt 0:00:00]} 3. Nc3 {[%emt 0:00:00]} Bg7 {[%emt 0:00:00]} 4. e4 {[%emt 0:00:13]} Nf6 {[%emt 0:00:00]} 5. f4 {[%emt 0:00:21]} O-O {[%emt 0:00:13]} 6. Nf3 {[%emt 0:00:25]} c5 {[%emt 0:00:11]} 7. d5 {[%emt 0:00:33]} e6 {[%emt 0:00:08]} 8. Be2 {[%emt 0:00:57]} exd5 {[%emt 0:00:08]} 9. cxd5 {[%emt 0:00:08]} b5 {[%emt 0:00:23]} 10. e5 {[%emt 0:05:37]} dxe5 {[%emt 0:00:34]} 11. fxe5 {[%emt 0:00:08]} Ng4 {[%emt 0:00:50]} 12. d6 {[%emt 0:02:13]} Nd7 {[%emt 0:00:22]} 13. Bf4 {[%emt 0:19:41]} Rb8 {[%emt 0:10:15]} 14. e6 {[%emt 0:44:00]} fxe6 {[%emt 0:01:55]} 15. Ng5 {[%emt 0:00:33]} Nf2 {[%emt 0:03:30]} 16. Kxf2 {[%emt 0:09:00]} Qxg5 {[%emt 0:01:49]} 17. g3 {[%emt 0:00:18]} e5 {[%emt 0:06:18]} 18. Qd5+ {[%emt 0:03:05]} Kh8 {[%emt 0:03:09]} 0-1

[Event "EYCC Open-U10 2019"]
[Site "Bratislava"]
[Date "2019.08.10"]
[Round "9.46"]
[White "Burkart, Lloyd Shang"]
[Black "Oglaza, Dawid"]
[Result "1/2-1/2"]
[ECO "A40"]
[WhiteElo "1522"]
[BlackElo "1284"]
[Annotator "NA RC"]
[PlyCount "90"]
[EventDate "2019.08.02"]
[EventType "swiss"]
[EventCountry "SVK"]
[SourceTitle "playchess.com"]
[Source "ChessBase"]
[SourceQuality "1"]
[TimeControl "40/5400+30:1800+30"]

1. d4 {[%emt 0:00:00]} Nf6 {[%emt 0:00:00]} 2. c4 {[%emt 0:00:00]} e6 {[%emt 0:00:03]} 3. g3 {[%emt 0:00:00]} Bb4+ {[%emt 0:01:39]} 4. Bd2 {[%emt 0:01:39]} Bxd2+ {[%emt 0:00:47]} 5. Qxd2 {[%emt 0:01:38]} O-O {[%emt 0:01:09]} 6. Bg2 {[%emt 0:02:24]} d6 {[%emt 0:01:11]} 7. Nf3 {[%emt 0:04:07]} Nbd7 {[%emt 0:02:44]} 8. Nc3 {[%emt 0:02:58]} Nb6 {[%emt 0:02:40]} 9. b3 {[%emt 0:03:39]} d5 {[%emt 0:00:56]} 10. c5 {[%emt 0:05:40]} Nbd7 {[%emt 0:00:43]} 11. O-O {[%emt 0:01:10]} b6 {[%emt 0:00:28]} 12. b4 {[%emt 0:02:39]} c6 {[%emt 0:02:08]} 13. Rfb1 {[%emt 0:12:54]} Qc7 {[%emt 0:02:42]} 14. a3 {[%emt 0:05:25]} e5 {[%emt 0:01:49]} 15. e3 {[%emt 0:05:54]} e4 {[%emt 0:02:14]} 16. Ne1 {[%emt 0:00:21]} Ne8 {[%emt 0:01:15]} 17. Rc1 {[%emt 0:03:24]} Rb8 {[%emt 0:07:18]} 18. Rab1 {[%emt 0:00:15]} b5 {[%emt 0:00:18]} 19. Nc2 {[%emt 0:01:58]} f5 {[%emt 0:00:56]} 20. Ra1 {[%emt 0:01:32]} g5 {[%emt 0:08:38]} 21. Ne2 {[%emt 0:00:54]} Ndf6 {[%emt 0:01:57]} 22. a4 {[%emt 0:03:58]} a6 {[%emt 0:01:31]} 23. axb5 {[%emt 0:01:44]} axb5 {[%emt 0:00:35]} 24. Ra5 {[%emt 0:00:47]} h5 {[%emt 0:01:08]} 25. Rca1 {[%emt 0:01:03]} Bb7 {[%emt 0:02:01]} 26. Ra7 {[%emt 0:02:40]} Qh7 {[%emt 0:02:13]} 27. h4 {[%emt 0:07:12]} gxh4 {[%emt 0:00:39]} 28. gxh4 {[%emt 0:00:17]} Qg7 {[%emt 0:03:07]} 29. R1a6 {[%emt 0:05:11]} Nd7 {[%emt 0:01:38]} 30. Nf4 {[%emt 0:02:24]} Nc7 {[%emt 0:04:32]} 31. Ra1 {[%emt 0:00:50]} Qg4 {[%emt 0:02:27]} 32. Qd1 {[%emt 0:00:32]} Nf6 {[%emt 0:02:46]} 33. Qxg4+ {[%emt 0:00:07]} fxg4 {[%emt 0:01:12]} 34. Ng6 {[%emt 0:00:52]} Rfe8 {[%emt 0:02:05]} 35. Ne5 {[%emt 0:00:26]} Na6 {[%emt 0:01:09]} 36. Nxc6 {[%emt 0:01:08]} Bxc6 {[%emt 0:01:03]} 37. R1xa6 {[%emt 0:00:25]} Rec8 {[%emt 0:02:23]} 38. Re7 {[%emt 0:03:15]} Ne8 {[%emt 0:03:49]} 39. Re6 {[%emt 0:03:06]} Bd7 {[%emt 0:04:32]} 40. Re5 {[%emt 0:00:00]} Nc7 {[%emt 0:00:00]} 41. Ra7 {[%emt 0:04:41]} Be8 {[%emt 0:05:23]} 42. Rg5+ {[%emt 0:05:13]} Kh8 {[%emt 0:01:14]} 43. Re5 {[%emt 0:04:13]} Ra8 {[%emt 0:01:10]} 44. Rxa8 {[%emt 0:00:11]} Rxa8 {[%emt 0:00:22]} 45. Re7 {[%emt 0:00:07]} Rc8 1/2-1/2

[Event "EYCC Open-U10 2019"]
[Site "Bratislava"]
[Date "2019.08.10"]
[Round "9.47"]
[White "Mertins, Ostap"]
[Black "Biyiksiz, Ali Batuhan"]
[Result "0-1"]
[ECO "B27"]
[WhiteElo "1339"]
[BlackElo "1378"]
[Annotator "NA RC"]
[PlyCount "52"]
[EventDate "2019.08.02"]
[EventType "swiss"]
[EventCountry "SVK"]
[SourceTitle "playchess.com"]
[Source "ChessBase"]
[SourceQuality "1"]
[TimeControl "40/5400+30:1800+30"]

1. e4 {[%emt 0:00:00]} c5 {[%emt 0:00:00]} 2. Nf3 {[%emt 0:00:00]} g6 {[%emt 0:00:58]} 3. d4 {[%emt 0:00:45]} cxd4 {[%emt 0:00:05]} 4. Nxd4 {[%emt 0:00:07]} Bg7 {[%emt 0:00:05]} 5. c3 {[%emt 0:04:19]} Nc6 {[%emt 0:00:07]} 6. Be3 {[%emt 0:01:51]} Nf6 {[%emt 0:00:12]} 7. f3 {[%emt 0:01:28]} O-O {[%emt 0:00:11]} 8. Qd2 {[%emt 0:02:19]} d5 {[%emt 0:00:16]} 9. exd5 {[%emt 0:05:21]} Nxd5 {[%emt 0:00:10]} 10. Nxc6 {[%emt 0:01:56]} bxc6 {[%emt 0:00:16]} 11. Bh6 {[%emt 0:02:19]} e5 {[%emt 0:01:57]} 12. Bxg7 {[%emt 0:02:13]} Kxg7 {[%emt 0:00:10]} 13. c4 {[%emt 0:04:41]} Nf4 {[%emt 0:00:35]} 14. Qxd8 {[%emt 0:01:44]} Rxd8 {[%emt 0:00:07]} 15. Nc3 {[%emt 0:01:23]} Bf5 {[%emt 0:01:27]} 16. g3 {[%emt 0:03:58]} Nd3+ {[%emt 0:00:24]} 17. Bxd3 {[%emt 0:00:12]} Rxd3 {[%emt 0:00:14]} 18. Ke2 {[%emt 0:00:47]} Rb8 {[%emt 0:01:22]} 19. Na4 {[%emt 0:09:00]} Rd4 {[%emt 0:00:25]} 20. b3 {[%emt 0:05:46]} Bd3+ {[%emt 0:00:39]} 21. Ke3 {[%emt 0:02:12]} Bxc4 {[%emt 0:02:19]} 22. Rac1 {[%emt 0:02:44]} Rd3+ {[%emt 0:03:51]} 23. Ke4 {[%emt 0:03:18]} f5+ {[%emt 0:00:33]} 24. Kxe5 {[%emt 0:03:19]} Re8+ {[%emt 0:00:07]} 25. Kf4 {[%emt 0:02:12]} Rd4+ {[%emt 0:00:05]} 26. Kg5 {[%emt 0:01:07]} h6# {[%emt 0:00:06]} 0-1

[Event "EYCC Open-U10 2019"]
[Site "Bratislava"]
[Date "2019.08.10"]
[Round "9.48"]
[White "Tushishvili, Tamaz"]
[Black "Jalovec, Igor"]
[Result "1-0"]
[ECO "C84"]
[WhiteElo "1323"]
[BlackElo "1465"]
[Annotator "NA RC"]
[PlyCount "99"]
[EventDate "2019.08.02"]
[EventType "swiss"]
[EventCountry "SVK"]
[SourceTitle "playchess.com"]
[Source "ChessBase"]
[SourceQuality "1"]
[TimeControl "40/5400+30:1800+30"]

1. e4 {[%emt 0:00:00]} e5 {[%emt 0:01:10]} 2. Nf3 {[%emt 0:00:00]} Nc6 {[%emt 0:00:35]} 3. Bb5 {[%emt 0:00:00]} a6 {[%emt 0:00:57]} 4. Ba4 {[%emt 0:00:11]} Nf6 {[%emt 0:01:26]} 5. O-O {[%emt 0:00:17]} Be7 {[%emt 0:00:10]} 6. d3 {[%emt 0:00:18]} b5 {[%emt 0:00:55]} 7. Bb3 {[%emt 0:00:05]} d6 {[%emt 0:01:03]} 8. c3 {[%emt 0:00:05]} O-O {[%emt 0:00:48]} 9. Nbd2 {[%emt 0:01:04]} Na5 {[%emt 0:05:25]} 10. Bc2 {[%emt 0:00:54]} c5 {[%emt 0:00:39]} 11. Re1 {[%emt 0:00:47]} Re8 {[%emt 0:00:40]} 12. Nf1 {[%emt 0:00:32]} Bf8 {[%emt 0:00:55]} 13. Ng3 {[%emt 0:00:21]} g6 {[%emt 0:01:02]} 14. d4 {[%emt 0:01:20]} Bg4 {[%emt 0:08:32]} 15. Bg5 {[%emt 0:08:45]} Bg7 {[%emt 0:00:30]} 16. d5 {[%emt 0:04:27]} h6 {[%emt 0:08:58]} 17. Bxf6 {[%emt 0:00:30]} Qxf6 {[%emt 0:01:02]} 18. h3 {[%emt 0:02:51]} Bxf3 {[%emt 0:05:35]} 19. Qxf3 {[%emt 0:00:02]} Qxf3 {[%emt 0:01:11]} 20. gxf3 {[%emt 0:00:50]} Nc4 {[%emt 0:00:30]} 21. b3 {[%emt 0:03:24]} Nb6 {[%emt 0:04:09]} 22. Kg2 {[%emt 0:01:35]} h5 {[%emt 0:00:30]} 23. Ne2 {[%emt 0:02:02]} Bh6 {[%emt 0:06:54]} 24. Red1 {[%emt 0:02:13]} Rec8 {[%emt 0:06:33]} 25. h4 c4 26. b4 {[%emt 0:02:55]} a5 {[%emt 0:03:29]} 27. a3 {[%emt 0:02:23]} axb4 28. axb4 Rxa1 {[%emt 0:02:55]} 29. Rxa1 {[%emt 0:02:03]} Ra8 {[%emt 0:00:25]} 30. Rxa8+ {[%emt 0:02:56]} Nxa8 {[%emt 0:01:39]} 31. f4 {[%emt 0:00:42]} exf4 {[%emt 0:03:41]} 32. Kf3 {[%emt 0:02:27]} Bg7 {[%emt 0:01:26]} 33. Kxf4 {[%emt 0:02:03]} Bf6 {[%emt 0:02:03]} 34. Nd4 {[%emt 0:00:10]} Bxd4 35. cxd4 {[%emt 0:01:36]} Nc7 {[%emt 0:01:11]} 36. Ke3 {[%emt 0:00:30]} Na6 {[%emt 0:00:30]} 37. e5 {[%emt 0:00:30]} Nxb4 {[%emt 0:03:15]} 38. Be4 {[%emt 0:03:12]} dxe5 {[%emt 0:00:48]} 39. dxe5 {[%emt 0:00:00]} c3 {[%emt 0:00:00]} 40. f4 Kf8 41. d6 {[%emt 0:03:14]} Na2 {[%emt 0:08:15]} 42. Kd3 {[%emt 0:10:08]} b4 {[%emt 0:00:14]} 43. Kc2 {[%emt 0:00:31]} b3+ {[%emt 0:03:38]} 44. Kxb3 {[%emt 0:00:09]} Nc1+ {[%emt 0:00:06]} 45. Kc4 {[%emt 0:06:23]} Ne2 {[%emt 0:00:28]} 46. f5 Ng3 47. f6 {[%emt 0:02:25]} c2 {[%emt 0:08:15]} 48. Bxc2 {[%emt 0:00:24]} Ke8 {[%emt 0:01:29]} 49. Ba4+ {[%emt 0:00:14]} Kd8 {[%emt 0:00:12]} 50. d7 {[%emt 0:00:06]} 1-0